bitfinex/quotes_ETHUSD_20240709
["timestamp","ask_amount","ask_price","bid_price","bid_amount"]
[1720489317332,0.08258301,3027.5,3026.1,2.354]
[1720489317533,0.08258301,3027.5,3025.4,2.354]
[1720489317834,2.3469,3027.4,3025.4,5.65933]
[1720489318039,2.3469,3027.2,3025.4,2.354]
[1720489318337,0.08260739,3027.1,3025.5,3.30522]
[1720489318524,0.08260739,3027.1,3025.4,5.65925]
[1720489318525,0.11593654,3027.1,3025.4,5.65925]
[1720489318742,0.24295074,3027.0,3025.5,3.30522]
[1720489318937,0.0826074,3026.9,3025.5,3.30522]
[1720489319236,0.11582117,3026.9,3025.6,3.30511]
[1720489319721,0.11582117,3026.9,3025.6,3.30504]
[1720489319927,0.03321377,3026.9,3025.6,3.30504]
[1720489320362,2.3469,3027.2,3026.1,3.30457]
[1720489320666,2.58159,3027.2,3025.7,5.03049044]
[1720489320960,2.58159,3027.2,3025.6,0.72093141]
[1720489320961,2.3469,3027.2,3026.1,3.30449]
[1720489321158,2.3469,3027.2,3026.0,2.354]
[1720489321371,0.23469,3027.1,3026.0,5.354]
[1720489321725,0.23469,3027.1,3026.1,3.3045]
[1720489321925,0.23469,3027.1,3026.1,3.33645106]
[1720489322165,2.3469,3027.2,3026.4,3.30418]
[1720489322368,2.3958,3027.9,3026.7,3.30382]
[1720489322563,2.3958,3027.9,3026.0,5.354]
[1720489322564,2.3958,3027.9,3026.6,3.30403]
[1720489323231,2.3958,3027.9,3026.4,3.3042]
[1720489323431,0.24296634,3027.7,3026.3,3.30435]
[1720489323635,0.24296634,3027.7,3026.4,3.0]
[1720489323871,0.24296634,3027.7,3026.0,7.38381096]
[1720489323872,2.42228911,3027.6,3026.0,2.354]
[1720489324182,0.26652555,3027.5,3026.0,2.354]
[1720489324325,0.08259905,3027.4,3026.0,2.354]
[1720489324726,0.26652555,3027.5,3026.0,2.354]
[1720489325379,0.34912547,3027.5,3026.0,2.354]
[1720489325682,0.26652555,3027.5,3026.0,2.38590475]
[1720489325843,0.29436445,3027.4,3026.0,2.38590475]
[1720489326028,0.26062255,3027.4,3026.0,2.38590475]
[1720489326229,0.26062255,3027.4,3026.2,3.30446]
[1720489326451,0.26062255,3027.4,3026.0,2.354]
[1720489326782,0.03363531,3027.3,3026.0,2.354]
[1720489327087,0.26062255,3027.4,3026.0,2.354]
[1720489327226,0.03361955,3027.2,3026.0,2.354]
[1720489327637,0.26062255,3027.4,3026.0,2.354]
[1720489327839,1.14477521,3027.3,3026.0,5.69056426]
[1720489328064,0.03376968,3027.3,3026.0,2.38590426]
[1720489328267,2.3397,3027.6,3026.5,3.30407]
[1720489328561,0.03356502,3027.2,3026.6,0.55]
[1720489328734,0.23397,3027.5,3026.6,0.55]
[1720489328934,0.23397,3027.5,3026.0,2.354]
[1720489329134,0.257367,3027.4,3026.1,0.55]
[1720489329339,0.257367,3027.4,3026.2,3.30447]
[1720489329762,0.257367,3027.4,3026.3,6.30436]
[1720489330122,2.3397,3027.6,3026.4,3.30425]
[1720489330367,2.3397,3027.6,3026.5,3.85405]
[1720489330945,1.22730564,3027.5,3026.0,5.65862]
[1720489331145,1.50142094,3027.4,3026.0,5.65862]
[1720489331323,1.14467716,3027.3,3026.0,5.65862]
[1720489331527,0.35670056,3027.4,3026.0,5.65862]
[1720489331766,1.14472124,3027.3,3026.1,0.03188968]
[1720489331982,0.35670056,3027.4,3026.4,3.30418]
[1720489332128,0.35670056,3027.4,3026.5,0.03187261]
[1720489332570,2.3397,3027.6,3026.5,0.03187261]
[1720489332743,1.14457828,3027.5,3026.8,2.337]
[1720489332943,2.3397,3027.6,3026.8,2.337]
[1720489334281,1.14462165,3027.5,3026.8,2.337]
[1720489334429,0.34843217,3027.4,3026.8,2.337]
[1720489334639,1.14462514,3027.3,3026.8,2.337]
[1720489334831,0.34843217,3027.4,3026.8,2.337]
[1720489335066,1.1446726,3027.3,3026.8,2.337]
[1720489335262,0.40588028,3027.4,3026.8,2.337]
[1720489335467,1.14465854,3027.3,3026.8,2.337]
[1720489335649,1.22724865,3027.2,3026.3,2.337]
[1720489335865,1.14483401,3027.1,3026.3,2.337]
[1720489336083,1.14483401,3027.0,3026.3,2.337]
[1720489336307,0.08259948,3027.0,3026.3,2.337]
[1720489336432,1.14488568,3026.9,3026.3,2.337]
[1720489336785,1.14488568,3026.8,3026.3,2.337]
[1720489337085,0.08259948,3027.0,3026.3,2.337]
[1720489337372,1.1448459,3026.9,3026.3,2.337]
[1720489337600,1.1448459,3026.8,3026.3,2.337]
[1720489337778,1.1448459,3027.2,3026.3,2.337]
[1720489337937,1.14485366,3027.1,3026.3,2.337]
[1720489338134,0.40588028,3027.4,3026.8,2.337]
[1720489338135,0.05744811,3027.4,3026.8,2.337]
[1720489338376,1.14475056,3027.3,3026.8,2.337]
[1720489338582,0.05744811,3027.4,3026.8,2.337]
[1720489338951,2.3397,3027.6,3026.8,5.67266081]
[1720489339186,0.03386344,3027.8,3026.8,2.36886081]
[1720489339343,0.03386344,3027.8,3027.3,2.337]
[1720489339683,0.03386344,3027.8,3027.5,3.30295]
[1720489339891,0.03386344,3027.8,3027.3,2.337]
[1720489340543,0.03386344,3027.8,3027.5,3.30305]
[1720489341258,0.03386344,3027.8,3027.7,6.60566]
[1720489341491,2.2664,3029.0,3028.3,3.30215]
[1720489341775,2.32381529,3029.5,3028.4,5.38274562]
[1720489341935,2.32381529,3029.5,3028.5,0.55]
[1720489342385,2.2664,3029.5,3028.7,3.30174]
[1720489342536,2.2664,3029.5,3028.5,0.55]
[1720489342739,2.49304,3029.5,3028.4,8.65304]
[1720489342991,2.49304,3029.5,3028.5,3.30193]
[1720489343294,0.05744075,3030.0,3029.1,3.30129]
[1720489343594,1.03019003,3030.4,3028.7,3.33341855]
[1720489343892,0.05748679,3030.3,3028.9,3.30152]
[1720489344052,0.05748679,3030.3,3029.0,0.03170644]
[1720489344379,0.05748679,3030.3,3029.0,3.03170644]
[1720489344690,0.05748679,3030.3,3029.0,6.33310644]
[1720489345039,0.05748679,3030.3,3028.4,2.351]
[1720489345040,0.08251734,3030.2,3028.4,5.65298]
[1720489345252,5.8967,3030.1,3028.4,2.351]
[1720489345563,4.15845954,3030.0,3028.4,2.351]
[1720489345895,5.18763959,3030.0,3028.4,2.351]
[1720489346250,0.59792173,3030.0,3028.5,0.03174427]
[1720489346497,0.59792173,3030.0,3028.5,3.33360427]
[1720489346653,0.59792173,3030.0,3028.6,3.30182]
[1720489346853,0.08252907,3029.9,3028.4,5.65305]
[1720489347551,2.50122907,3030.1,3028.5,3.30195]
[1720489348062,2.4187,3030.1,3028.5,3.30195]
[1720489348468,0.24187,3030.0,3028.6,0.03173456]
[1720489348671,2.4187,3030.1,3028.6,3.33354456]
[1720489348867,2.4187,3030.1,3028.7,3.55]
[1720489349067,2.4187,3030.1,3028.8,0.03171419]
[1720489349465,2.4187,3030.1,3028.8,3.30156]
[1720489349678,0.24187,3030.0,3028.8,3.30156]
[1720489349860,0.24187,3030.0,3028.4,2.351]
[1720489349861,0.08252054,3029.9,3028.4,2.351]
[1720489350176,0.08252054,3029.9,3027.8,2.351]
[1720489350177,2.3672,3029.8,3027.8,2.351]
[1720489350388,5.8452,3029.6,3027.8,2.351]
[1720489350589,2.3672,3029.4,3027.5,7.44]
[1720489350801,5.8452,3029.1,3027.2,2.351]
[1720489351005,0.08256471,3029.0,3027.2,5.65432]
[1720489351295,0.24497647,3028.9,3027.2,5.65432]
[1720489351467,0.08256152,3028.8,3027.2,2.351]
[1720489351855,0.08256152,3028.8,3027.2,5.65435]
[1720489352089,0.08256152,3028.8,3027.3,3.0]
[1720489352398,2.35646308,3028.7,3027.2,2.351]
[1720489352689,5.83446308,3028.7,3027.2,2.351]
[1720489353102,2.35646308,3028.7,3027.3,0.0318329]
[1720489353306,2.2739,3028.7,3027.3,0.0318329]
[1720489353465,2.2739,3028.7,3027.3,0.03182018]
[1720489353799,2.2739,3028.7,3027.5,3.30303]
[1720489354011,2.2739,3028.7,3027.6,0.0317913]
[1720489354164,2.2739,3028.7,3027.2,2.351]
[1720489354165,0.08255821,3028.6,3027.2,2.351]
[1720489354364,0.23564582,3028.5,3027.2,2.351]
[1720489355397,2.2739,3028.7,3027.3,0.03182933]
[1720489355603,2.2739,3028.7,3027.4,3.30312]
[1720489355975,2.2739,3028.7,3027.5,0.55]
[1720489356307,2.2739,3028.7,3027.6,0.03179739]
[1720489356465,2.50129,3028.7,3027.6,0.03179739]
[1720489356665,2.50129,3028.7,3027.5,0.55]
[1720489357316,2.50129,3028.7,3027.6,0.03179153]
[1720489357471,2.2739,3028.7,3027.6,0.03179153]
[1720489359505,2.2739,3028.7,3027.7,3.30279]
[1720489359824,2.2739,3028.7,3027.5,0.55]
[1720489359990,2.2739,3028.7,3027.6,3.30294]
[1720489360187,2.2739,3028.7,3027.7,3.55]
[1720489360588,2.2739,3028.7,3028.1,2.335]
[1720489361003,2.3067,3029.7,3028.6,2.335]
[1720489361315,2.3067,3029.7,3028.1,2.335]
[1720489361316,0.2775639,3029.6,3028.1,2.36675436]
[1720489361609,0.2775639,3029.6,3028.1,2.335]
[1720489361811,0.2775639,3029.6,3028.1,2.36676137]
[1720489362189,2.3305,3029.4,3028.1,2.335]
[1720489362389,0.08254868,3029.3,3028.1,2.335]
[1720489362713,2.3305,3029.1,3028.1,2.335]
[1720489363045,0.08255522,3029.0,3027.7,7.44]
[1720489363199,0.24130552,3028.9,3027.7,2.335]
[1720489364092,0.14010086,3028.8,3027.7,2.335]
[1720489364275,0.082562,3028.7,3027.7,2.335]
[1720489364986,2.4044,3028.6,3027.7,2.335]
[1720489365313,0.33126874,3028.5,3027.7,2.335]
[1720489365878,0.2486962,3028.5,3027.7,2.335]
[1720489366926,2.4044,3028.6,3027.8,0.03181204]
[1720489367215,2.4044,3028.6,3028.2,2.335]
[1720489368817,2.4044,3028.6,3027.7,2.335]
[1720489370228,0.08256113,3028.5,3027.7,2.335]
[1720489370536,0.24869611,3028.4,3027.7,2.335]
[1720489373226,0.08256436,3028.3,3027.7,2.335]
[1720489373519,0.08256436,3028.3,3027.2,2.335]
[1720489373684,0.24869611,3028.4,3027.2,2.335]
[1720489373685,0.08257365,3028.2,3027.2,2.335]
[1720489374120,1.14443394,3028.1,3027.2,2.335]
[1720489374485,1.14453821,3028.0,3027.2,2.335]
[1720489374686,0.4836612,3028.3,3027.2,2.335]
[1720489374987,1.14447422,3028.2,3027.2,2.335]
[1720489375290,0.24869611,3028.4,3027.7,2.335]
[1720489375626,2.4044,3028.6,3027.7,2.335]
[1720489375790,1.38471488,3028.5,3027.7,2.335]
[1720489375988,0.24044,3028.5,3027.7,2.335]
[1720489376391,1.14434174,3028.4,3027.7,2.335]
[1720489376612,0.24044,3028.5,3027.7,2.335]
[1720489377291,1.14429481,3028.4,3027.7,2.335]
[1720489377607,0.37891348,3028.4,3027.7,2.335]
[1720489379104,1.14433029,3028.3,3027.7,2.335]
[1720489379314,0.37891348,3028.4,3027.7,2.335]
[1720489379315,1.14433029,3028.2,3027.7,2.335]
[1720489379515,2.4044,3028.6,3027.7,2.335]
[1720489379732,1.14433003,3028.5,3027.7,2.335]
[1720489379891,1.14433003,3028.4,3027.7,2.335]
[1720489380095,1.14433003,3028.3,3027.7,2.335]
[1720489380390,2.4044,3028.6,3027.7,2.335]
[1720489380625,1.14422471,3028.5,3027.7,2.335]
[1720489380927,2.4044,3028.6,3027.7,2.335]
[1720489380928,1.14422471,3028.4,3027.7,2.335]
[1720489381101,2.4044,3028.6,3027.7,2.335]
[1720489381102,1.14422471,3028.5,3027.7,2.335]
[1720489381290,1.14422471,3028.4,3027.7,2.335]
[1720489381494,1.14422471,3028.5,3027.7,2.335]
[1720489381695,1.14422471,3028.4,3027.2,2.335]
[1720489382227,1.14439241,3028.3,3027.2,2.335]
[1720489382431,0.2668884,3028.4,3027.2,2.335]
[1720489382595,1.14437279,3028.3,3027.2,2.335]
[1720489382793,1.14437279,3028.2,3027.2,2.335]
[1720489382992,1.14437279,3028.1,3027.2,2.335]
[1720489383219,0.2668884,3028.4,3027.2,2.335]
[1720489383220,1.14439098,3028.0,3027.2,2.335]
[1720489383422,1.29422558,3028.4,3027.2,2.335]
[1720489383423,1.14439098,3027.9,3027.2,2.335]
[1720489383638,2.17172816,3028.3,3027.2,2.335]
[1720489383833,1.14439098,3028.2,3027.2,2.335]
[1720489385105,1.22695844,3028.2,3027.2,2.335]
[1720489385311,1.29373803,3028.3,3027.2,2.335]
[1720489385541,1.14446379,3028.2,3027.2,2.335]
[1720489386058,2.67012042,3028.2,3026.7,2.335]
[1720489386198,1.02733718,3027.9,3026.7,2.335]
[1720489386398,2.2765,3027.7,3026.7,2.335]
[1720489386601,1.14446379,3027.6,3026.7,2.335]
[1720489388238,2.2765,3027.7,3026.7,2.335]
[1720489388442,1.14456965,3027.6,3027.4,2.335]
[1720489388602,1.02733718,3028.4,3027.4,2.335]
[1720489388800,1.14440313,3028.3,3027.9,2.335]
[1720489389114,1.02733718,3029.1,3028.0,0.03178824]
[1720489389322,1.14410309,3029.0,3028.4,2.335]
[1720489389500,1.14410309,3028.9,3028.4,2.335]
[1720489389702,0.36383829,3029.1,3028.4,2.335]
[1720489389937,1.14403115,3029.0,3028.4,2.335]
[1720489390232,1.02733718,3029.3,3028.4,2.335]
[1720489390456,1.14400898,3029.2,3028.4,2.335]
[1720489390621,1.2265505,3029.1,3027.9,2.335]
[1720489390819,1.36939775,3029.0,3027.9,2.335]
[1720489391022,1.14400898,3028.9,3027.9,2.335]
[1720489391461,0.08255187,3028.9,3027.9,2.335]
[1720489391644,2.17148872,3028.8,3027.9,2.335]
[1720489391855,1.02733718,3028.7,3027.9,2.335]
[1720489392171,1.14418451,3028.6,3027.9,2.335]
[1720489392340,1.14418451,3028.5,3027.9,2.335]
[1720489392538,1.14418451,3028.6,3027.9,2.335]
[1720489392741,1.42196954,3028.8,3027.9,2.335]
[1720489392970,1.3206248,3028.7,3027.9,2.335]
[1720489393180,1.14418327,3028.6,3027.9,2.335]
[1720489394669,1.21034581,3028.7,3027.9,2.335]
[1720489394964,1.14418173,3028.6,3027.9,2.335]
[1720489395168,1.03390428,3028.6,3027.9,2.335]
[1720489395322,1.332256,3028.6,3027.9,2.335]
[1720489395523,1.03390428,3028.4,3027.4,2.335]
[1720489395889,1.03390428,3028.0,3027.4,2.335]
[1720489396173,1.03390428,3027.8,3027.4,2.335]
[1720489396367,1.03390428,3028.0,3027.4,2.335]
[1720489396739,1.03390428,3028.2,3027.5,0.0318358]
[1720489396951,1.03390428,3028.3,3027.5,0.0318358]
[1720489397270,0.17644153,3028.7,3027.5,0.0318358]
[1720489397271,1.03390428,3028.7,3027.9,2.335]
[1720489397589,1.03390428,3028.8,3028.0,0.03177174]
[1720489397730,1.03510597,3028.7,3028.0,0.03177174]
[1720489398050,1.03510597,3028.8,3028.0,0.03177174]
[1720489398429,1.03510597,3028.8,3027.9,2.335]
[1720489398624,1.03510597,3028.7,3027.9,2.335]
[1720489398849,1.03510597,3028.8,3027.9,2.335]
[1720489399054,1.03510597,3028.8,3028.0,0.03177184]
[1720489399455,1.03510597,3029.0,3028.4,2.335]
[1720489399656,1.03510597,3029.2,3028.4,2.335]
[1720489399859,1.03510597,3029.3,3028.4,2.335]
[1720489400972,1.03510597,3029.3,3028.5,0.0317502]
[1720489401273,0.05751117,3029.7,3028.9,2.335]
[1720489401474,2.3378,3030.6,3028.6,2.4066]
[1720489401475,1.03502971,3030.1,3029.4,2.335]
[1720489401680,1.03502971,3030.2,3029.4,2.335]
[1720489402483,1.03502971,3030.3,3029.4,2.335]
[1720489402687,1.27653664,3030.2,3029.4,2.335]
[1720489402980,1.03502971,3030.2,3029.4,2.335]
[1720489403446,1.03502971,3030.3,3029.4,2.335]
[1720489403651,1.03502971,3030.3,3029.5,0.03170434]
[1720489404084,1.03502971,3030.5,3029.6,2.3028]
[1720489404269,1.38019489,3030.7,3029.9,2.335]
[1720489404470,0.55768686,3030.7,3029.9,2.335]
[1720489404852,0.34516518,3030.7,3030.0,0.03164496]
[1720489405067,1.03502971,3031.1,3030.0,0.03164496]
[1720489405274,1.03502971,3031.1,3029.9,2.335]
[1720489405472,1.03502971,3031.0,3029.9,2.335]
[1720489405678,0.24150693,3030.9,3029.9,2.335]
[1720489405980,1.27653664,3030.9,3029.9,2.335]
[1720489406571,0.24150693,3030.9,3029.9,2.335]
[1720489406762,1.27653664,3030.9,3029.9,2.335]
[1720489407151,0.24150693,3030.9,3029.9,2.335]
[1720489407487,0.05748661,3031.2,3030.4,2.335]
[1720489407787,3.51712971,3031.6,3030.4,2.335]
[1720489407957,2.4821,3031.6,3030.5,0.03162616]
[1720489408285,0.35171297,3031.5,3030.5,0.03162616]
[1720489408492,0.05748201,3031.6,3030.5,0.03162616]
[1720489409349,0.05748201,3031.6,3030.9,2.335]
[1720489409557,1.03502971,3032.5,3030.9,2.335]
[1720489409868,0.05747657,3032.1,3030.9,2.335]
[1720489410874,0.08246202,3032.5,3030.9,2.335]
[1720489411073,0.05747607,3032.3,3030.9,2.335]
[1720489412297,0.08246817,3032.2,3030.6,2.3333]
[1720489412516,3.478,3032.0,3030.3,2.335]
[1720489412789,3.478,3031.8,3030.3,2.335]
[1720489412954,0.08249241,3031.7,3030.3,2.335]
[1720489413298,0.08249241,3031.7,3029.5,2.59270539]
[1720489413299,3.478,3031.5,3029.8,2.335]
[1720489413460,3.478,3031.3,3029.8,2.335]
[1720489413662,2.3178,3031.6,3029.8,2.335]
[1720489413663,0.0825052,3031.2,3029.8,2.335]
[1720489414071,3.56050191,3031.4,3029.8,2.335]
[1720489414263,0.35605019,3031.3,3029.9,0.03165275]
[1720489414489,2.3178,3031.6,3030.4,2.335]
[1720489414790,0.08248777,3031.8,3030.4,2.335]
[1720489414995,0.68504878,3031.7,3030.4,2.335]
[1720489416194,0.68504878,3031.7,3030.4,4.7738]
[1720489416401,3.29,3031.9,3030.5,0.0316105]
[1720489416690,4.85909206,3032.1,3030.5,0.0316105]
[1720489416892,0.08246828,3032.0,3030.9,2.335]
[1720489417394,0.08246828,3032.0,3030.4,4.7738]
[1720489418589,6.07599206,3032.1,3030.5,0.03161354]
[1720489418590,2.59799206,3032.1,3030.5,0.03161354]
[1720489418961,2.68046606,3032.1,3030.4,4.7738]
[1720489419155,0.25979921,3032.0,3030.4,4.7738]
[1720489419361,0.08247762,3031.9,3030.4,4.7738]
[1720489419855,0.25979921,3032.0,3030.4,4.7738]
[1720489420899,0.34227677,3032.0,3030.4,4.7738]
[1720489421078,0.64182688,3031.9,3030.4,4.7738]
[1720489421279,0.0824841,3031.8,3030.4,4.7738]
[1720489421460,0.08248408,3031.8,3030.4,4.7738]
[1720489421667,0.25979921,3032.0,3030.4,4.7738]
[1720489421668,0.34228195,3032.0,3030.4,4.7738]
[1720489421868,0.2940274,3031.9,3030.4,4.7738]
[1720489422069,2.59799206,3032.1,3030.5,0.0316115]
[1720489422368,2.59799206,3032.1,3030.9,2.335]
[1720489423274,0.05747607,3032.3,3030.9,2.335]
[1720489424898,0.05747607,3032.3,3031.0,0.03158973]
[1720489425776,0.05747607,3032.3,3031.4,2.335]
[1720489425982,0.05747607,3032.3,3031.5,0.03156666]
[1720489426388,9.6398,3033.2,3031.9,2.335]
[1720489426589,0.0574464,3033.0,3032.0,2.49292068]
[1720489427119,3.56043647,3034.0,3032.0,2.49292068]
[1720489427284,0.05749386,3033.2,3032.0,2.49292068]
[1720489427690,0.08243642,3033.7,3032.0,2.49292068]
[1720489427889,0.05749452,3033.2,3032.0,2.49292068]
[1720489428204,0.0824364,3033.5,3032.0,2.4614]
[1720489428404,0.05749622,3033.2,3032.0,2.4614]
[1720489428604,0.13994159,3033.2,3032.0,2.4614]
[1720489429522,7.1060444,3033.1,3031.4,2.335]
[1720489429823,3.478,3032.9,3030.9,2.335]
[1720489429988,3.478,3032.7,3030.9,2.335]
[1720489430190,3.7245986,3033.0,3030.9,2.335]
[1720489430191,4.70351944,3032.6,3030.9,2.335]
[1720489430409,1.61340292,3032.5,3030.9,2.335]
[1720489430605,1.22551942,3032.4,3030.9,2.335]
[1720489430808,1.14305098,3032.3,3030.9,2.335]
[1720489431027,1.14305098,3032.2,3030.9,2.335]
[1720489431214,1.14305098,3032.1,3030.9,2.335]
[1720489431408,1.14305098,3032.3,3030.9,2.335]
[1720489431613,0.0824684,3032.2,3030.9,2.335]
[1720489431818,1.14305098,3032.1,3030.9,2.335]
[1720489432022,3.0,3032.8,3030.9,2.335]
[1720489432023,0.0824684,3032.6,3030.9,2.335]
[1720489432331,1.1430637,3032.5,3030.9,2.335]
[1720489432537,1.1430637,3032.4,3030.9,2.335]
[1720489432711,1.1430637,3032.3,3030.9,5.63434]
[1720489432907,3.08246093,3032.9,3030.9,2.335]
[1720489433109,1.79901609,3032.8,3030.9,2.335]
[1720489433339,1.22542911,3032.7,3030.9,2.335]
[1720489433544,1.14297,3032.6,3030.9,2.335]
[1720489433743,1.14297,3032.7,3030.9,2.335]
[1720489434037,4.62097,3032.6,3030.9,2.335]
[1720489434241,1.2254384,3032.5,3030.9,2.335]
[1720489434545,1.14297,3032.4,3030.9,2.335]
[1720489434834,0.0824684,3032.3,3030.9,2.335]
[1720489435034,1.14297,3032.2,3030.9,2.335]
[1720489435204,0.0824684,3032.5,3030.9,2.335]
[1720489435401,1.14306953,3032.1,3030.9,2.335]
[1720489435603,1.14306953,3032.0,3030.9,2.36658894]
[1720489435823,0.37385052,3032.7,3030.9,2.335]
[1720489435824,0.08246,3032.5,3030.9,2.335]
[1720489436023,1.14298632,3032.4,3030.9,2.335]
[1720489436343,1.14298632,3032.3,3030.9,2.335]
[1720489436503,1.14298632,3032.2,3030.9,2.335]
[1720489436809,1.14298632,3032.1,3030.9,2.335]
[1720489437014,1.14298632,3032.5,3030.9,2.335]
[1720489437198,1.14298632,3032.4,3031.0,0.03158089]
[1720489437403,3.478,3033.0,3031.4,2.335]
[1720489437404,1.14298632,3032.9,3031.4,2.335]
[1720489437633,3.56045533,3032.8,3031.4,2.335]
[1720489437839,4.22545086,3032.7,3031.4,2.335]
[1720489438039,1.14298632,3032.6,3031.4,2.335]
[1720489438251,3.08246454,3032.7,3031.4,2.335]
[1720489438252,1.22545084,3032.5,3031.4,2.335]
[1720489438419,0.08246452,3032.5,3030.9,2.335]
[1720489438620,1.14299841,3032.4,3030.9,2.335]
[1720489438820,0.08246505,3032.3,3030.9,2.335]
[1720489439019,1.14303824,3032.2,3030.9,2.335]
[1720489439347,1.14303824,3032.1,3030.9,2.335]
[1720489439923,1.14303824,3032.0,3030.9,2.335]
[1720489440125,1.14303824,3032.4,3030.9,2.335]
[1720489440448,1.36775368,3032.4,3030.9,2.335]
[1720489440640,1.22550328,3032.3,3030.9,2.335]
[1720489440962,1.14303824,3032.2,3031.4,2.335]
[1720489441104,1.14295563,3032.1,3031.4,2.335]
[1720489441306,0.3,3032.8,3031.4,2.335]
[1720489441550,1.22537436,3032.7,3031.4,2.335]
[1720489441748,1.14291698,3032.6,3030.9,2.335]
[1720489442063,3.56047539,3032.5,3030.9,2.335]
[1720489442206,3.94833924,3032.4,3030.9,2.335]
[1720489442405,1.22539227,3032.3,3030.9,2.335]
[1720489442643,1.22539225,3032.2,3030.9,2.335]
[1720489442974,2.3748,3032.0,3030.9,2.335]
[1720489443110,1.577164,3031.9,3030.9,2.335]
[1720489443307,1.14291698,3031.8,3030.9,2.335]
[1720489443552,0.08247535,3031.7,3030.9,2.335]
[1720489443753,0.08247535,3031.7,3029.5,13.16683162]
[1720489443754,1.14291698,3031.6,3030.4,2.335]
[1720489443965,0.08249426,3031.5,3029.8,2.335]
[1720489444124,5.09172601,3031.4,3029.8,2.335]
[1720489444328,2.3496,3031.2,3029.8,2.335]
[1720489444506,1.22589319,3031.1,3029.8,2.335]
[1720489444856,1.14338489,3031.0,3029.8,2.335]
[1720489445062,0.08250697,3030.9,3029.8,2.335]
[1720489445207,1.14338489,3030.8,3029.8,2.335]
[1720489445609,1.14338489,3030.7,3029.8,2.335]
[1720489445853,1.55488639,3030.9,3029.8,2.335]
[1720489446056,1.14338489,3030.8,3029.8,2.335]
[1720489446364,1.14338489,3030.8,3029.9,0.03166922]
[1720489446652,0.1353,3132.7,3029.8,2.335]
[1720489446653,3.0,3031.1,3029.8,2.335]
[1720489446820,1.14346693,3031.0,3029.8,2.335]
[1720489447021,1.14346693,3030.9,3029.8,2.335]
[1720489447223,1.14347532,3030.8,3029.8,2.335]
[1720489447424,1.14347532,3030.7,3029.8,2.335]
[1720489447625,1.03250218,3030.9,3029.8,2.335]
[1720489447826,1.14362456,3030.8,3029.8,2.335]
[1720489448147,1.14362456,3030.7,3029.8,2.335]
[1720489448318,1.14362456,3030.6,3029.8,2.335]
[1720489448519,1.14365072,3030.5,3029.8,2.335]
[1720489448717,1.14365072,3030.4,3029.8,2.335]
[1720489448913,1.14365072,3030.5,3029.8,2.335]
[1720489449323,1.37542337,3030.5,3029.8,2.335]
[1720489449541,1.14369027,3030.4,3029.3,5.335]
[1720489449850,0.08251372,3030.3,3029.3,2.335]
[1720489450437,0.08251964,3030.2,3029.3,2.335]
[1720489451424,0.08252204,3030.5,3029.3,2.335]
[1720489451629,5.65556306,3030.4,3028.8,2.335]
[1720489451924,1.03377525,3030.2,3028.8,2.335]
[1720489452113,4.51177525,3030.0,3028.7,2.3436]
[1720489452322,4.51177525,3030.0,3028.2,2.335]
[1720489452323,1.03377525,3029.8,3028.2,2.335]
[1720489452534,2.86967015,3029.7,3028.2,2.335]
[1720489452766,1.14378781,3029.6,3028.2,2.335]
[1720489452915,0.08254005,3029.5,3028.2,2.335]
[1720489453935,0.08254005,3029.5,3028.2,5.335]
[1720489454136,0.60956702,3029.7,3028.7,2.335]
[1720489454363,3.0,3029.8,3028.7,2.335]
[1720489454659,0.0825332,3029.7,3028.7,2.335]
[1720489455717,1.03377525,3030.2,3028.8,0.03174113]
[1720489455917,3.47167525,3030.5,3028.9,2.4705]
[1720489456185,2.92865865,3030.5,3029.2,2.335]
[1720489456485,0.08251984,3030.4,3029.2,2.335]
[1720489456624,2.92865865,3030.5,3029.2,2.335]
[1720489457041,3.9624339,3030.5,3029.2,2.335]
[1720489457217,0.41024991,3030.4,3029.2,2.335]
[1720489458062,0.05754427,3030.6,3029.2,2.335]
[1720489458850,3.05754427,3030.6,3029.2,2.335]
[1720489459228,0.05754427,3030.6,3029.2,2.335]
[1720489461669,0.05754427,3030.6,3029.3,0.03169271]
[1720489461870,0.05754427,3030.6,3029.4,2.2861]
[1720489462179,0.05754427,3030.6,3029.5,0.03168052]
[1720489462983,0.05754427,3030.6,3029.4,2.2861]
[1720489463145,1.22628746,3030.5,3028.8,2.2861]
[1720489463339,1.86887096,3030.4,3028.8,2.2861]
[1720489463666,1.22631105,3030.3,3028.8,2.2861]
[1720489463834,0.08252326,3030.3,3028.8,2.2861]
[1720489464770,0.72508317,3030.4,3028.8,8.58773]
[1720489465465,3.0,3030.5,3029.2,2.335]
[1720489465673,0.05754427,3030.6,3029.3,0.0316859]
[1720489466088,0.05754427,3030.6,3029.4,2.2652]
[1720489466297,0.05754427,3030.6,3029.7,2.335]
[1720489466451,5.09169206,3031.1,3029.8,0.03165968]
[1720489466452,2.59799206,3031.1,3029.8,0.03165968]
[1720489466650,1.14349713,3031.0,3029.8,0.03165968]
[1720489466854,0.05753733,3030.9,3029.7,2.335]
[1720489467051,0.14003516,3030.9,3029.7,2.335]
[1720489467387,1.14357292,3030.8,3029.5,3.0]
[1720489467542,1.22608451,3030.7,3029.4,2.2652]
[1720489467747,1.14357292,3030.6,3029.4,2.2652]
[1720489468042,0.08251159,3030.7,3029.4,2.2652]
[1720489468242,1.1436254,3030.6,3029.4,2.2652]
[1720489468493,1.2261917,3030.5,3029.4,2.2652]
[1720489468783,1.14368065,3030.4,3029.4,2.2652]
[1720489468970,0.08251579,3030.3,3029.2,2.335]
[1720489469284,1.14378192,3030.2,3029.2,2.335]
[1720489469461,0.08251579,3030.3,3029.2,2.335]